[Event "Early-Titled-Tuesday-Blitz-April-02-2024"]
[Site "Chess.com"]
[Date "2024.04.02"]
[Round "2"]
[White "BashiqChess"]
[Black "PavelShkapenko"]
[Result "1-0"]
[WhiteElo "2473"]
[BlackElo "2696"]
[TimeControl "180+1"]
[EndTime "8:18:00 PDT"]
[Termination "BashiqChess won by resignation"]

1. Nf3 {[%clk 0:02:56.7]} 1... d5 {[%clk 0:02:52.5]} 2. b3 {[%clk 0:02:56.5]}
2... c5 {[%clk 0:02:51.1]} 3. e3 {[%clk 0:02:56.6]} 3... Bf5 {[%clk 0:02:51]} 4.
Bb2 {[%clk 0:02:54.9]} 4... Nf6 {[%clk 0:02:51.2]} 5. Bb5+ {[%clk 0:02:55]} 5...
Nbd7 {[%clk 0:02:50.6]} 6. O-O {[%clk 0:02:49.1]} 6... e6 {[%clk 0:02:49.1]} 7.
c4 {[%clk 0:02:48.6]} 7... a6 {[%clk 0:02:49.2]} 8. Bxd7+ {[%clk 0:02:35.1]}
8... Qxd7 {[%clk 0:02:44.4]} 9. d4 {[%clk 0:02:33.5]} 9... dxc4 {[%clk
0:02:25.2]} 10. Ne5 {[%clk 0:02:07.1]} 10... Qc7 {[%clk 0:02:20.9]} 11. Nxc4
{[%clk 0:01:54.8]} 11... Rd8 {[%clk 0:02:08.2]} 12. Qf3 {[%clk 0:01:22.1]} 12...
Be4 {[%clk 0:02:06.6]} 13. Qg3 {[%clk 0:01:17.4]} 13... Qxg3 {[%clk 0:02:05.6]}
14. hxg3 {[%clk 0:01:18.3]} 14... b5 {[%clk 0:02:04.8]} 15. Ne5 {[%clk
0:01:13.1]} 15... cxd4 {[%clk 0:01:57.7]} 16. Bxd4 {[%clk 0:01:14]} 16... Bb4
{[%clk 0:01:56]} 17. a3 {[%clk 0:01:09.2]} 17... Ba5 {[%clk 0:01:54.2]} 18. a4
{[%clk 0:01:01.2]} 18... Bc7 {[%clk 0:01:49.6]} 19. axb5 {[%clk 0:00:56.9]}
19... axb5 {[%clk 0:01:50.5]} 20. Nc3 {[%clk 0:00:56.1]} 20... O-O {[%clk
0:01:39.8]} 21. b4 {[%clk 0:00:30.9]} 21... Bf5 {[%clk 0:01:27.7]} 22. Rfc1
{[%clk 0:00:28.1]} 22... Bd6 {[%clk 0:01:09.6]} 23. Nxb5 {[%clk 0:00:23.1]}
23... Bxb4 {[%clk 0:00:35.9]} 24. Nc6 {[%clk 0:00:22.1]} 24... Rd5 {[%clk
0:00:36.2]} 25. Nc7 {[%clk 0:00:16.6]} 25... Bd6 {[%clk 0:00:28.6]} 26. Nxd5
{[%clk 0:00:15.6]} 26... Nxd5 {[%clk 0:00:28.8]} 27. Bc5 {[%clk 0:00:13.7]}
27... Bxc5 {[%clk 0:00:27.4]} 28. Rxc5 {[%clk 0:00:14.6]} 28... h6 {[%clk
0:00:27.4]} 29. Rxd5 {[%clk 0:00:14.8]} 29... exd5 {[%clk 0:00:26.6]} 30. Ne7+
{[%clk 0:00:15.4]} 30... Kh8 {[%clk 0:00:26.6]} 31. Nxf5 {[%clk 0:00:16.3]}
31... Rd8 {[%clk 0:00:26.8]} 32. Nd4 {[%clk 0:00:16.8]} 32... Kh7 {[%clk
0:00:26.5]} 33. Ra7 {[%clk 0:00:17.4]} 33... Kg6 {[%clk 0:00:26.9]} 34. g4
{[%clk 0:00:17.9]} 34... Rf8 {[%clk 0:00:25.8]} 35. g3 {[%clk 0:00:18.4]} 35...
h5 {[%clk 0:00:26.2]} 36. gxh5+ {[%clk 0:00:18.6]} 36... Kxh5 {[%clk 0:00:27]}
37. Rd7 {[%clk 0:00:19.3]} 37... Kg6 {[%clk 0:00:25.5]} 38. Rxd5 {[%clk
0:00:19.6]} 38... Ra8 {[%clk 0:00:25.7]} 39. Kg2 {[%clk 0:00:20.1]} 39... Ra2
{[%clk 0:00:25.7]} 40. Rc5 {[%clk 0:00:20.5]} 40... Rb2 {[%clk 0:00:25.9]} 41.
Rb5 {[%clk 0:00:20.4]} 41... Ra2 {[%clk 0:00:26.1]} 42. Kf3 {[%clk 0:00:20.7]}
42... f6 {[%clk 0:00:25.1]} 43. g4 {[%clk 0:00:21]} 43... Kf7 {[%clk 0:00:24.9]}
44. Rb7+ {[%clk 0:00:21.2]} 44... Kg6 {[%clk 0:00:25.2]} 45. Nf5 {[%clk
0:00:21.6]} 45... Kh7 {[%clk 0:00:23.4]} 46. Rxg7+ {[%clk 0:00:21.7]} 46... Kh8
{[%clk 0:00:23.9]} 47. Rd7 {[%clk 0:00:20.6]} 47... Kg8 {[%clk 0:00:23.6]} 48.
Kg3 {[%clk 0:00:19.3]} 48... Kh8 {[%clk 0:00:23.4]} 49. Rd6 {[%clk 0:00:18.3]}
1-0

[Event "Early-Titled-Tuesday-Blitz-April-02-2024"]
[Site "Chess.com"]
[Date "2024.04.02"]
[Round "2"]
[White "AradNazari"]
[Black "Der_Balak_3Halak"]
[Result "0-1"]
[WhiteElo "2661"]
[BlackElo "2394"]
[TimeControl "180+1"]
[EndTime "8:18:00 PDT"]
[Termination "Der_Balak_3Halak won by resignation"]

1. e4 {[%clk 0:03:00.9]} 1... e6 {[%clk 0:02:46.8]} 2. d4 {[%clk 0:02:59.2]}
2... d5 {[%clk 0:02:47.7]} 3. e5 {[%clk 0:02:58.8]} 3... c5 {[%clk 0:02:47.4]}
4. c3 {[%clk 0:02:56.9]} 4... Nc6 {[%clk 0:02:46.8]} 5. Nf3 {[%clk 0:02:57.5]}
5... cxd4 {[%clk 0:02:46.1]} 6. cxd4 {[%clk 0:02:57.5]} 6... Qb6 {[%clk
0:02:47]} 7. Nc3 {[%clk 0:02:54.6]} 7... Nge7 {[%clk 0:02:33.9]} 8. Bd3 {[%clk
0:02:51.7]} 8... g6 {[%clk 0:02:31.1]} 9. O-O {[%clk 0:02:51.5]} 9... Nf5 {[%clk
0:02:31.2]} 10. Kh1 {[%clk 0:02:43.2]} 10... Bd7 {[%clk 0:02:26.5]} 11. Na4
{[%clk 0:02:38.8]} 11... Qc7 {[%clk 0:02:24.5]} 12. Bxf5 {[%clk 0:02:35.1]}
12... gxf5 {[%clk 0:02:23.1]} 13. Bg5 {[%clk 0:02:35.7]} 13... Rg8 {[%clk
0:02:19.6]} 14. Rc1 {[%clk 0:02:36]} 14... h6 {[%clk 0:02:13.5]} 15. Bf4 {[%clk
0:02:35.6]} 15... Qd8 {[%clk 0:02:12.8]} 16. Qd2 {[%clk 0:02:34.6]} 16... Qa5
{[%clk 0:01:51.7]} 17. Nc5 {[%clk 0:02:24.4]} 17... Qxd2 {[%clk 0:01:45.4]} 18.
Bxd2 {[%clk 0:02:25.3]} 18... b6 {[%clk 0:01:44.1]} 19. Nxd7 {[%clk 0:02:05.1]}
19... Kxd7 {[%clk 0:01:45]} 20. a3 {[%clk 0:02:04.1]} 20... Rc8 {[%clk 0:01:43]}
21. h3 {[%clk 0:01:54]} 21... Bg7 {[%clk 0:01:39]} 22. Rc3 {[%clk 0:01:47.1]}
22... f6 {[%clk 0:01:37.2]} 23. Bf4 {[%clk 0:01:30.8]} 23... fxe5 {[%clk
0:01:34.5]} 24. dxe5 {[%clk 0:01:26]} 24... Na5 {[%clk 0:01:32.2]} 25. Rd3
{[%clk 0:01:13.8]} 25... Rc2 {[%clk 0:01:29.2]} 26. b3 {[%clk 0:01:13.7]} 26...
Rgc8 {[%clk 0:01:27.3]} 27. Bd2 {[%clk 0:01:08.4]} 27... Nc6 {[%clk 0:01:25]}
28. Re1 {[%clk 0:01:08.2]} 28... Ra2 {[%clk 0:01:11.5]} 29. a4 {[%clk
0:01:03.5]} 29... a5 {[%clk 0:01:09.9]} 30. Kh2 {[%clk 0:00:37]} 30... Bf8
{[%clk 0:01:08.5]} 31. Kg3 {[%clk 0:00:36.7]} 31... Nb4 {[%clk 0:01:06]} 32.
Bxb4 {[%clk 0:00:34.5]} 32... axb4 {[%clk 0:01:02.8]} 33. Nd4 {[%clk 0:00:28.8]}
33... Rc3 {[%clk 0:01:00.7]} 34. Ree3 {[%clk 0:00:20.6]} 34... Bc5 {[%clk
0:00:59.2]} 35. Rf3 {[%clk 0:00:20.9]} 35... Rb2 {[%clk 0:00:49.9]} 36. Kh4
{[%clk 0:00:13.5]} 36... Bxd4 {[%clk 0:00:31.4]} 37. Rxd4 {[%clk 0:00:13.5]}
37... Rxf3 {[%clk 0:00:32.3]} 38. gxf3 {[%clk 0:00:13.6]} 38... Rxb3 {[%clk
0:00:33]} 39. Kg3 {[%clk 0:00:08.4]} 39... Kc6 {[%clk 0:00:32.9]} 40. Rh4 {[%clk
0:00:08.5]} 40... Kc5 {[%clk 0:00:27.8]} 41. Rxh6 {[%clk 0:00:08.6]} 41... Ra3
{[%clk 0:00:26.8]} 42. Rxe6 {[%clk 0:00:09.1]} 42... b3 {[%clk 0:00:27.7]} 43.
a5 {[%clk 0:00:02.1]} 43... Rxa5 {[%clk 0:00:25.2]} 44. Re8 {[%clk 0:00:02.7]}
44... b2 {[%clk 0:00:24]} 45. Rc8+ {[%clk 0:00:03.2]} 45... Kb4 {[%clk
0:00:24.6]} 46. Rb8 {[%clk 0:00:03.7]} 0-1

[Event "Early-Titled-Tuesday-Blitz-April-02-2024"]
[Site "Chess.com"]
[Date "2024.04.02"]
[Round "2"]
[White "Actuary44"]
[Black "kritipatel"]
[Result "1-0"]
[WhiteElo "2510"]
[BlackElo "2245"]
[TimeControl "180+1"]
[EndTime "8:18:00 PDT"]
[Termination "Actuary44 won by checkmate"]

1. e4 {[%clk 0:03:00.9]} 1... e5 {[%clk 0:03:00]} 2. d4 {[%clk 0:03:00.5]} 2...
exd4 {[%clk 0:02:59.5]} 3. c3 {[%clk 0:03:01.2]} 3... dxc3 {[%clk 0:02:59.1]} 4.
Bc4 {[%clk 0:03:01]} 4... Nc6 {[%clk 0:02:57.6]} 5. Nf3 {[%clk 0:02:58.4]} 5...
d6 {[%clk 0:02:50.1]} 6. Qb3 {[%clk 0:02:56.4]} 6... Qf6 {[%clk 0:02:38.5]} 7.
Nxc3 {[%clk 0:02:43.8]} 7... Nge7 {[%clk 0:02:16.5]} 8. O-O {[%clk 0:02:40.2]}
8... h6 {[%clk 0:02:14.2]} 9. Nb5 {[%clk 0:02:34.2]} 9... Kd8 {[%clk 0:01:46.3]}
10. Bd2 {[%clk 0:02:32.9]} 10... Ng6 {[%clk 0:01:42.1]} 11. Bxf7 {[%clk
0:02:30.7]} 11... Nge5 {[%clk 0:01:33.4]} 12. Nxe5 {[%clk 0:02:30]} 12... Nxe5
{[%clk 0:01:33.8]} 13. Bh5 {[%clk 0:02:18.5]} 13... Be6 {[%clk 0:01:23.2]} 14.
Qc2 {[%clk 0:02:10.7]} 14... Bc4 {[%clk 0:01:19.2]} 15. Nxc7 {[%clk 0:02:04.9]}
15... Kxc7 {[%clk 0:00:52.7]} 16. b3 {[%clk 0:02:03.6]} 16... Rc8 {[%clk
0:00:49.4]} 17. bxc4 {[%clk 0:02:01.6]} 17... Kb8 {[%clk 0:00:49.9]} 18. Be2
{[%clk 0:01:48.8]} 18... Qf7 {[%clk 0:00:38.7]} 19. Rfc1 {[%clk 0:01:43.4]}
19... g5 {[%clk 0:00:38.1]} 20. Rab1 {[%clk 0:01:42.8]} 20... g4 {[%clk
0:00:36.6]} 21. Qa4 {[%clk 0:01:36.3]} 21... h5 {[%clk 0:00:34.8]} 22. Be3
{[%clk 0:01:36.6]} 22... Nc6 {[%clk 0:00:31.3]} 23. c5 {[%clk 0:01:29.8]} 23...
dxc5 {[%clk 0:00:29]} 24. Bc4 {[%clk 0:01:29.4]} 24... Qf6 {[%clk 0:00:21.3]}
25. Bd5 {[%clk 0:01:28.8]} 25... Bh6 {[%clk 0:00:19.7]} 26. Qb5 {[%clk
0:00:24.7]} 26... Rc7 {[%clk 0:00:18.8]} 27. Bxh6 {[%clk 0:00:20.6]} 27... Qxh6
{[%clk 0:00:18.4]} 28. Rxc5 {[%clk 0:00:20.7]} 28... Rf8 {[%clk 0:00:18.5]} 29.
Bxc6 {[%clk 0:00:18.5]} 29... Qf6 {[%clk 0:00:16.8]} 30. Rc2 {[%clk 0:00:16.4]}
30... Rxc6 {[%clk 0:00:15.7]} 31. Qxc6 {[%clk 0:00:15.5]} 31... Qf7 {[%clk
0:00:10.9]} 32. Qc4 {[%clk 0:00:13]} 32... Qf6 {[%clk 0:00:10.8]} 33. Qd5 {[%clk
0:00:12.5]} 33... Qe7 {[%clk 0:00:09.9]} 34. Rcb2 {[%clk 0:00:11.1]} 34... b6
{[%clk 0:00:08.6]} 35. a4 {[%clk 0:00:09.8]} 35... Qc7 {[%clk 0:00:08.8]} 36. a5
{[%clk 0:00:09.1]} 36... Rc8 {[%clk 0:00:09.5]} 37. g3 {[%clk 0:00:08.4]} 37...
h4 {[%clk 0:00:08.5]} 38. axb6 {[%clk 0:00:08.4]} 38... axb6 {[%clk 0:00:08.2]}
39. Rxb6+ {[%clk 0:00:08.5]} 39... Ka7 {[%clk 0:00:08]} 40. Rb7+ {[%clk
0:00:07.9]} 40... Ka6 {[%clk 0:00:07.4]} 41. Rxc7 {[%clk 0:00:08.1]} 41... Rxc7
{[%clk 0:00:08.3]} 42. Qa2# {[%clk 0:00:08.3]} 1-0

[Event "Early-Titled-Tuesday-Blitz-April-02-2024"]
[Site "Chess.com"]
[Date "2024.04.02"]
[Round "2"]
[White "AlphaGoosee"]
[Black "Shiner22"]
[Result "0-1"]
[WhiteElo "2519"]
[BlackElo "2329"]
[TimeControl "180+1"]
[EndTime "8:18:01 PDT"]
[Termination "Shiner22 won by checkmate"]

1. e4 {[%clk 0:03:00.9]} 1... c5 {[%clk 0:02:59.1]} 2. Nf3 {[%clk 0:03:01.5]}
2... Nc6 {[%clk 0:02:59.2]} 3. d4 {[%clk 0:03:02.2]} 3... cxd4 {[%clk
0:02:59.5]} 4. Nxd4 {[%clk 0:03:03.1]} 4... e5 {[%clk 0:02:59.9]} 5. Nb5 {[%clk
0:03:03.1]} 5... a6 {[%clk 0:03:00.4]} 6. Nd6+ {[%clk 0:03:03.1]} 6... Bxd6
{[%clk 0:03:00.7]} 7. Qxd6 {[%clk 0:03:04]} 7... Qf6 {[%clk 0:03:01.1]} 8. Qd1
{[%clk 0:02:59.9]} 8... Qg6 {[%clk 0:03:00.9]} 9. f3 {[%clk 0:02:58]} 9... Nf6
{[%clk 0:02:56.5]} 10. Be3 {[%clk 0:02:54]} 10... d5 {[%clk 0:02:43.3]} 11. exd5
{[%clk 0:02:33.6]} 11... Nb4 {[%clk 0:02:42.8]} 12. Na3 {[%clk 0:02:34]} 12...
O-O {[%clk 0:02:38.5]} 13. Bc5 {[%clk 0:02:27.6]} 13... Nbxd5 {[%clk 0:02:29.1]}
14. Bxf8 {[%clk 0:02:27.7]} 14... Kxf8 {[%clk 0:02:28.9]} 15. c4 {[%clk
0:01:58.5]} 15... Nf4 {[%clk 0:02:28.1]} 16. Qd6+ {[%clk 0:01:52]} 16... Ke8
{[%clk 0:02:27.4]} 17. Qxe5+ {[%clk 0:01:47.1]} 17... Ne6 {[%clk 0:02:27.4]} 18.
O-O-O {[%clk 0:01:44.4]} 18... b5 {[%clk 0:02:13.6]} 19. c5 {[%clk 0:01:36.2]}
19... Bb7 {[%clk 0:02:11.1]} 20. Bd3 {[%clk 0:01:27.6]} 20... Qxg2 {[%clk
0:02:10.1]} 21. Bf5 {[%clk 0:01:27.9]} 21... Nd7 {[%clk 0:01:39.3]} 22. Rxd7
{[%clk 0:01:06.8]} 22... Qxh1+ {[%clk 0:01:36.7]} 23. Rd1 {[%clk 0:01:06.6]}
23... Qxf3 {[%clk 0:01:34.9]} 24. Bxe6 {[%clk 0:01:04.6]} 24... fxe6 {[%clk
0:01:32.3]} 25. Qxe6+ {[%clk 0:01:04]} 25... Kf8 {[%clk 0:01:32.3]} 26. Nc2
{[%clk 0:00:41.4]} 26... Re8 {[%clk 0:01:15.2]} 27. Qd6+ {[%clk 0:00:41.3]}
27... Kg8 {[%clk 0:01:14.5]} 28. Qd7 {[%clk 0:00:32.8]} 28... Bc6 {[%clk
0:01:09.7]} 29. Qd6 {[%clk 0:00:33.3]} 29... Be4 {[%clk 0:00:57]} 30. Qd2 {[%clk
0:00:25.3]} 30... h6 {[%clk 0:00:52.1]} 31. Nd4 {[%clk 0:00:23.4]} 31... Qf7
{[%clk 0:00:47.9]} 32. b4 {[%clk 0:00:22.1]} 32... Qc4+ {[%clk 0:00:38.6]} 33.
Kb2 {[%clk 0:00:22.1]} 33... Bd5 {[%clk 0:00:35.3]} 34. Nb3 {[%clk 0:00:22.1]}
34... Re2 {[%clk 0:00:34.5]} 35. Qxe2 {[%clk 0:00:22.3]} 35... Qxe2+ {[%clk
0:00:34.7]} 36. Rd2 {[%clk 0:00:23.2]} 36... Qe5+ {[%clk 0:00:34.2]} 37. Ka3
{[%clk 0:00:23.1]} 37... g5 {[%clk 0:00:27.9]} 38. Rc2 {[%clk 0:00:22.5]} 38...
Bxb3 {[%clk 0:00:24.5]} 39. axb3 {[%clk 0:00:23.4]} 39... Qa1+ {[%clk
0:00:23.8]} 40. Ra2 {[%clk 0:00:23.9]} 40... Qc1+ {[%clk 0:00:23]} 41. Rb2
{[%clk 0:00:24.5]} 41... a5 {[%clk 0:00:19.6]} 42. Ka2 {[%clk 0:00:24.5]} 42...
axb4 {[%clk 0:00:18.9]} 43. Re2 {[%clk 0:00:25.4]} 43... Qxc5 {[%clk 0:00:18.6]}
44. h4 {[%clk 0:00:26.2]} 44... Qa7+ {[%clk 0:00:17.3]} 45. Kb2 {[%clk
0:00:26.2]} 45... g4 {[%clk 0:00:17.5]} 46. Re4 {[%clk 0:00:26.2]} 46... h5
{[%clk 0:00:17.1]} 47. Rxb4 {[%clk 0:00:25.9]} 47... Qc5 {[%clk 0:00:15.9]} 48.
Re4 {[%clk 0:00:24.2]} 48... g3 {[%clk 0:00:16]} 49. Re2 {[%clk 0:00:23.5]}
49... Qd4+ {[%clk 0:00:15.2]} 50. Kc2 {[%clk 0:00:24.2]} 50... Kf7 {[%clk
0:00:14.4]} 51. Re1 {[%clk 0:00:22.6]} 51... g2 {[%clk 0:00:14.4]} 52. Re2
{[%clk 0:00:22.6]} 52... g1=Q {[%clk 0:00:14.2]} 53. b4 {[%clk 0:00:23.2]} 53...
Qc4+ {[%clk 0:00:13.9]} 54. Kd2 {[%clk 0:00:23.4]} 54... Qgc1# {[%clk
0:00:14.6]} 0-1

[Event "Early-Titled-Tuesday-Blitz-April-02-2024"]
[Site "Chess.com"]
[Date "2024.04.02"]
[Round "2"]
[White "AlainBruxelles"]
[Black "Savagelittlemole"]
[Result "1-0"]
[WhiteElo "2302"]
[BlackElo "2510"]
[TimeControl "180+1"]
[EndTime "8:18:03 PDT"]
[Termination "AlainBruxelles won on time"]

1. e4 {[%clk 0:03:00.9]} 1... c5 {[%clk 0:02:58.7]} 2. Nf3 {[%clk 0:02:59.9]}
2... d6 {[%clk 0:02:59]} 3. d4 {[%clk 0:02:59.4]} 3... cxd4 {[%clk 0:02:59.9]}
4. Nxd4 {[%clk 0:02:59.8]} 4... Nf6 {[%clk 0:03:00.4]} 5. Nc3 {[%clk 0:03:00.2]}
5... a6 {[%clk 0:03:00.5]} 6. Bg5 {[%clk 0:02:55.2]} 6... Nbd7 {[%clk
0:03:00.3]} 7. g3 {[%clk 0:02:52.1]} 7... h6 {[%clk 0:02:59.1]} 8. Be3 {[%clk
0:02:50.8]} 8... e5 {[%clk 0:02:58.9]} 9. Nb3 {[%clk 0:02:47]} 9... Be7 {[%clk
0:02:56.9]} 10. Bg2 {[%clk 0:02:47]} 10... O-O {[%clk 0:02:56.8]} 11. O-O {[%clk
0:02:47.2]} 11... b5 {[%clk 0:02:57.4]} 12. a3 {[%clk 0:02:46.5]} 12... Bb7
{[%clk 0:02:57.7]} 13. Qd2 {[%clk 0:02:46.5]} 13... Rc8 {[%clk 0:02:58]} 14.
Rad1 {[%clk 0:02:42.1]} 14... Nb6 {[%clk 0:02:58.1]} 15. Qe2 {[%clk 0:02:34.4]}
15... Nc4 {[%clk 0:02:51.6]} 16. Bc1 {[%clk 0:02:07.5]} 16... Nxa3 {[%clk
0:02:47.7]} 17. bxa3 {[%clk 0:01:53.4]} 17... Rxc3 {[%clk 0:02:47.5]} 18. Bb2
{[%clk 0:01:53.9]} 18... Rc4 {[%clk 0:02:39.5]} 19. f3 {[%clk 0:01:42]} 19...
Qb6+ {[%clk 0:02:32.5]} 20. Kh1 {[%clk 0:01:41.6]} 20... Rfc8 {[%clk 0:02:32.5]}
21. Rd2 {[%clk 0:01:40.8]} 21... a5 {[%clk 0:02:05.5]} 22. Bh3 {[%clk 0:01:36]}
22... R8c7 {[%clk 0:02:00.9]} 23. Rfd1 {[%clk 0:01:34.3]} 23... Bc8 {[%clk
0:01:57.5]} 24. Bg2 {[%clk 0:01:33.8]} 24... Be6 {[%clk 0:01:55]} 25. h3 {[%clk
0:01:24.3]} 25... R4c6 {[%clk 0:01:34.3]} 26. f4 {[%clk 0:01:12]} 26... Bc4
{[%clk 0:01:22.9]} 27. Qf3 {[%clk 0:01:08.8]} 27... a4 {[%clk 0:01:17.2]} 28.
Nc1 {[%clk 0:01:08]} 28... Qc5 {[%clk 0:01:01.8]} 29. f5 {[%clk 0:01:01.7]}
29... Rd7 {[%clk 0:00:49.1]} 30. g4 {[%clk 0:01:00.5]} 30... Rc8 {[%clk
0:00:44.8]} 31. h4 {[%clk 0:00:59.9]} 31... Nh7 {[%clk 0:00:44.2]} 32. Qg3
{[%clk 0:00:56.3]} 32... Rcd8 {[%clk 0:00:42.5]} 33. Bh3 {[%clk 0:00:52.9]}
33... Nf6 {[%clk 0:00:32.8]} 34. Bg2 {[%clk 0:00:51.3]} 34... d5 {[%clk
0:00:30.2]} 35. g5 {[%clk 0:00:49.1]} 35... hxg5 {[%clk 0:00:28]} 36. hxg5
{[%clk 0:00:48.8]} 36... Nxe4 {[%clk 0:00:27.7]} 37. Bxe4 {[%clk 0:00:47.9]}
37... Qc7 {[%clk 0:00:09.9]} 38. Qxe5 {[%clk 0:00:41.3]} 38... Qxe5 {[%clk
0:00:08]} 39. Bxe5 {[%clk 0:00:41.3]} 39... Bxg5 {[%clk 0:00:08.4]} 40. Rg2
{[%clk 0:00:38.4]} 40... f6 {[%clk 0:00:05.4]} 41. Bc3 {[%clk 0:00:32]} 41...
dxe4 {[%clk 0:00:05.1]} 42. Rxd7 {[%clk 0:00:31.1]} 42... Rxd7 {[%clk 0:00:06]}
43. Ne2 {[%clk 0:00:27.3]} 43... Rd1+ {[%clk 0:00:05.7]} 44. Kh2 {[%clk
0:00:27.1]} 44... Kf7 {[%clk 0:00:04.5]} 45. Nd4 {[%clk 0:00:22.6]} 45... Bf4+
{[%clk 0:00:04.2]} 46. Kh3 {[%clk 0:00:21.7]} 46... Be5 {[%clk 0:00:02.5]} 47.
Ne2 {[%clk 0:00:20.2]} 47... Rh1+ {[%clk 0:00:01.5]} 48. Kg4 {[%clk 0:00:19.8]}
1-0

[Event "Early-Titled-Tuesday-Blitz-April-02-2024"]
[Site "Chess.com"]
[Date "2024.04.02"]
[Round "2"]
[White "shirovin"]
[Black "ploxoi"]
[Result "0-1"]
[WhiteElo "2038"]
[BlackElo "2432"]
[TimeControl "180+1"]
[EndTime "8:18:03 PDT"]
[Termination "ploxoi won on time"]

1. e4 {[%clk 0:03:00.9]} 1... c5 {[%clk 0:02:59.2]} 2. Nf3 {[%clk 0:02:58.1]}
2... e6 {[%clk 0:02:59.5]} 3. d4 {[%clk 0:02:57]} 3... cxd4 {[%clk 0:03:00.4]}
4. Nxd4 {[%clk 0:02:57.1]} 4... Nc6 {[%clk 0:03:01.2]} 5. Nc3 {[%clk 0:02:57.1]}
5... Qc7 {[%clk 0:03:01.4]} 6. Be2 {[%clk 0:02:55.1]} 6... Nf6 {[%clk
0:03:00.9]} 7. Be3 {[%clk 0:02:48.4]} 7... a6 {[%clk 0:03:00.9]} 8. O-O {[%clk
0:02:46.2]} 8... Be7 {[%clk 0:03:00]} 9. f4 {[%clk 0:02:45.6]} 9... d6 {[%clk
0:02:59.5]} 10. Kh1 {[%clk 0:02:43]} 10... O-O {[%clk 0:02:58.3]} 11. Qe1 {[%clk
0:02:42.3]} 11... Nxd4 {[%clk 0:02:43.5]} 12. Bxd4 {[%clk 0:02:41.2]} 12... e5
{[%clk 0:02:41.6]} 13. fxe5 {[%clk 0:02:39.3]} 13... dxe5 {[%clk 0:02:42.5]} 14.
Qg3 {[%clk 0:02:38.7]} 14... Bd8 {[%clk 0:02:43.1]} 15. Bxe5 {[%clk 0:02:26.8]}
15... Qc6 {[%clk 0:02:41.1]} 16. Nd5 {[%clk 0:02:18.3]} 16... Ne8 {[%clk
0:02:37]} 17. Bd3 {[%clk 0:02:10.5]} 17... Be6 {[%clk 0:02:34.4]} 18. Ne3 {[%clk
0:01:56]} 18... Rc8 {[%clk 0:01:43.4]} 19. Nf5 {[%clk 0:01:52.9]} 19... Bxf5
{[%clk 0:01:41]} 20. Rxf5 {[%clk 0:01:46.1]} 20... Bc7 {[%clk 0:01:40.9]} 21.
Raf1 {[%clk 0:01:29.5]} 21... Bxe5 {[%clk 0:01:39.8]} 22. Qxe5 {[%clk
0:01:28.8]} 22... Qd6 {[%clk 0:01:38.6]} 23. Qf4 {[%clk 0:01:22.6]} 23... Qxf4
{[%clk 0:01:37.4]} 24. R5xf4 {[%clk 0:01:22.2]} 24... Rc5 {[%clk 0:01:32.5]} 25.
b3 {[%clk 0:01:21.2]} 25... Nd6 {[%clk 0:01:29.7]} 26. Rh4 {[%clk 0:01:14.8]}
26... b5 {[%clk 0:01:27.8]} 27. e5 {[%clk 0:01:07.4]} 27... Rxe5 {[%clk
0:01:21]} 28. Bxh7+ {[%clk 0:01:06.1]} 28... Kh8 {[%clk 0:01:21.2]} 29. Bd3+
{[%clk 0:00:59.2]} 29... Kg8 {[%clk 0:01:21.5]} 30. h3 {[%clk 0:00:51.8]} 30...
g6 {[%clk 0:01:18]} 31. Rg4 {[%clk 0:00:50.8]} 31... Kg7 {[%clk 0:01:16.6]} 32.
Kh2 {[%clk 0:00:48]} 32... a5 {[%clk 0:01:12.4]} 33. Rgf4 {[%clk 0:00:45.7]}
33... b4 {[%clk 0:01:09.7]} 34. a3 {[%clk 0:00:38.9]} 34... Rb8 {[%clk
0:01:04.2]} 35. axb4 {[%clk 0:00:38.2]} 35... axb4 {[%clk 0:01:03.7]} 36. Rd4
{[%clk 0:00:33.2]} 36... Rb6 {[%clk 0:01:00.7]} 37. Bc4 {[%clk 0:00:30.9]} 37...
f5 {[%clk 0:00:58.2]} 38. Rfd1 {[%clk 0:00:28.3]} 38... Ne4 {[%clk 0:00:58.3]}
39. Rd7+ {[%clk 0:00:27.3]} 39... Kh6 {[%clk 0:00:50.2]} 40. h4 {[%clk
0:00:21.6]} 40... Nc3 {[%clk 0:00:29.7]} 41. R1d6 {[%clk 0:00:18.4]} 41... Rxd6
{[%clk 0:00:23.9]} 42. Rxd6 {[%clk 0:00:17.9]} 42... Kh5 {[%clk 0:00:22.9]} 43.
Kh3 {[%clk 0:00:15.7]} 43... Re3+ {[%clk 0:00:22]} 44. g3 {[%clk 0:00:15.2]}
44... f4 {[%clk 0:00:22.5]} 45. Rd5+ {[%clk 0:00:14.5]} 45... Nxd5 {[%clk
0:00:21.2]} 46. Bxd5 {[%clk 0:00:13.4]} 46... Rxg3+ {[%clk 0:00:21.9]} 47. Kh2
{[%clk 0:00:11.9]} 47... Kxh4 {[%clk 0:00:22.8]} 0-1